[Event "Czech Youth U16 Girls 2024"]
[Site "Kouty nad Desnou"]
[Date "2024.03.11"]
[Round "4.6"]
[White "Cinkova, Vicky"]
[Black "Zelenkova, Sofie"]
[Result "1-0"]
[ECO "A15"]
[WhiteElo "1682"]
[BlackElo "1636"]
[Annotator "NA RC"]
[PlyCount "175"]
[EventDate "2024.03.10"]
[EventType "swiss"]
[EventCountry "CZE"]
[SourceTitle "playchess.com"]
[Source "ChessBase"]
[SourceQuality "1"]
[TimeControl "40/5400+30:1800+30"]

1. c4 {[%emt 0:00:11]} Nf6 {[%emt 0:00:04]} 2. g3 {[%emt 0:00:08]} e6 {[%emt 0:00:05]} 3. a3 {[%emt 0:00:07]} g6 {[%emt 0:00:33]} 4. Bg2 {[%emt 0:00:26]} Bg7 {[%emt 0:00:05]} 5. Nc3 {[%emt 0:01:11]} O-O {[%emt 0:00:21]} 6. e3 {[%emt 0:01:19]} d5 7. cxd5 Nxd5 {[%emt 0:00:38]} 8. Nge2 {[%emt 0:01:51]} c5 {[%emt 0:03:30]} 9. Nxd5 {[%emt 0:02:56]} exd5 {[%emt 0:00:09]} 10. d4 {[%emt 0:00:47]} c4 {[%emt 0:02:36]} 11. Nf4 {[%emt 0:02:24]} Be6 {[%emt 0:00:40]} 12. O-O {[%emt 0:03:48]} Nc6 {[%emt 0:00:58]} 13. Bd2 {[%emt 0:08:04]} Re8 {[%emt 0:02:45]} 14. Bc3 {[%emt 0:03:14]} Qd7 {[%emt 0:03:29]} 15. Re1 {[%emt 0:11:17]} Rad8 {[%emt 0:03:47]} 16. Rc1 {[%emt 0:02:51]} b5 {[%emt 0:01:26]} 17. b3 {[%emt 0:05:39]} a5 {[%emt 0:02:55]} 18. bxc4 {[%emt 0:00:42]} bxc4 {[%emt 0:00:21]} 19. Qa4 {[%emt 0:03:16]} g5 {[%emt 0:26:20]} 20. Ne2 {[%emt 0:01:34]} Nxd4 {[%emt 0:06:12]} 21. Qxd7 Nxe2+ {[%emt 0:00:19]} 22. Rxe2 {[%emt 0:10:07]} Rxd7 {[%emt 0:00:15]} 23. Bxa5 {[%emt 0:00:42]} Rc8 {[%emt 0:04:04]} 24. Bc3 {[%emt 0:02:07]} Bxc3 {[%emt 0:03:01]} 25. Rxc3 {[%emt 0:00:04]} Rb8 {[%emt 0:01:52]} 26. h3 {[%emt 0:01:19]} Ra7 {[%emt 0:05:39]} 27. Rd2 {[%emt 0:12:40]} Rb3 {[%emt 0:01:06]} 28. Rc1 {[%emt 0:02:29]} c3 {[%emt 0:03:35]} 29. Rd3 {[%emt 0:00:40]} Raxa3 {[%emt 0:02:01]} 30. Kh2 {[%emt 0:02:36]} Bf5 {[%emt 0:07:29]} 31. Rxd5 {[%emt 0:05:19]} Rb1 {[%emt 0:00:38]} 32. Rxb1 {[%emt 0:02:06]} Bxb1 {[%emt 0:00:09]} 33. Rxg5+ {[%emt 0:00:16]} Bg6 {[%emt 0:03:22]} 34. Be4 {[%emt 0:01:38]} Ra2 {[%emt 0:00:38]} 35. Bxg6 {[%emt 0:00:35]} hxg6 {[%emt 0:00:21]} 36. Kg2 {[%emt 0:01:07]} Kg7 {[%emt 0:01:13]} 37. Rc5 {[%emt 0:00:13]} Rc2 {[%emt 0:00:57]} 38. Kf3 {[%emt 0:00:38]} Kf6 {[%emt 0:00:49]} 39. e4 {[%emt 0:00:47]} Ke6 {[%emt 0:01:24]} 40. Ke3 {[%emt 0:00:21]} Kd6 {[%emt 0:00:53]} 41. Rc8 {[%emt 0:30:06]} Ke6 {[%emt 0:31:50]} 42. h4 {[%emt 0:00:41]} Rc1 {[%emt 0:01:16]} 43. Kd3 {[%emt 0:02:46]} Rd1+ {[%emt 0:00:33]} 44. Kc2 {[%emt 0:00:11]} Rd2+ {[%emt 0:00:14]} 45. Kxc3 {[%emt 0:00:16]} Rxf2 {[%emt 0:00:10]} 46. Kd4 {[%emt 0:00:11]} Rd2+ {[%emt 0:00:54]} 47. Ke3 {[%emt 0:00:16]} Rb2 {[%emt 0:00:22]} 48. Rc5 {[%emt 0:02:31]} Rb3+ {[%emt 0:00:34]} 49. Kf4 {[%emt 0:00:36]} f6 {[%emt 0:02:11]} 50. Rc6+ {[%emt 0:00:36]} Ke7 {[%emt 0:00:23]} 51. Rc7+ {[%emt 0:04:20]} Kf8 {[%emt 0:01:16]} 52. Rc5 {[%emt 0:05:04]} Ke7 {[%emt 0:01:49]} 53. g4 {[%emt 0:00:00]} Rb1 {[%emt 0:00:00]} 54. Rc2 {[%emt 0:00:00]} Rh1 {[%emt 0:00:00]} 55. Kg3 {[%emt 0:00:00]} Re1 {[%emt 0:00:00]} 56. Kf4 {[%emt 0:00:00]} Rh1 {[%emt 0:00:00]} 57. Kg3 {[%emt 0:00:00]} Re1 {[%emt 0:00:00]} 58. Kf3 {[%emt 0:00:00]} Rh1 {[%emt 0:00:00]} 59. Rc7+ {[%emt 0:00:00]} Kf8 {[%emt 0:00:00]} 60. Rc6 {[%emt 0:00:00]} Ke7 {[%emt 0:00:00]} 61. g5 {[%emt 0:00:00]} fxg5 {[%emt 0:00:00]} 62. hxg5 {[%emt 0:00:00]} Rf1+ {[%emt 0:00:00]} 63. Ke2 {[%emt 0:00:00]} Rf4 {[%emt 0:00:00]} 64. Ke3 {[%emt 0:00:00]} Rg4 {[%emt 0:00:00]} 65. Rxg6 {[%emt 0:00:00]} Kf7 {[%emt 0:00:00]} 66. Rf6+ {[%emt 0:00:00]} Ke7 {[%emt 0:00:00]} 67. Rf5 {[%emt 0:00:00]} Ke6 {[%emt 0:00:00]} 68. Kd4 {[%emt 0:00:45]} Kd6 {[%emt 0:00:00]} 69. Ra5 {[%emt 0:02:45]} Ke6 {[%emt 0:00:00]} 70. Ke3 {[%emt 0:02:01]} Rg3+ {[%emt 0:00:00]} 71. Kf4 {[%emt 0:00:14]} Rb3 {[%emt 0:00:00]} 72. Ra6+ {[%emt 0:01:43]} Kf7 {[%emt 0:00:00]} 73. Kg4 {[%emt 0:01:43]} Rb4 {[%emt 0:00:00]} 74. Kf5 {[%emt 0:00:07]} Rb7 {[%emt 0:00:00]} 75. g6+ {[%emt 0:00:34]} Kg7 {[%emt 0:00:00]} 76. e5 {[%emt 0:00:35]} Rc7 {[%emt 0:00:00]} 77. Ra1 {[%emt 0:00:24]} Rc6 {[%emt 0:00:00]} 78. Ra7+ {[%emt 0:00:18]} Kg8 {[%emt 0:00:00]} 79. Rf7 {[%emt 0:02:16]} Rb6 {[%emt 0:00:00]} 80. Rf6 {[%emt 0:00:29]} Rb7 {[%emt 0:00:00]} 81. Rd6 {[%emt 0:01:03]} Kg7 {[%emt 0:00:19]} 82. Ra6 {[%emt 0:00:11]} Rc7 {[%emt 0:02:21]} 83. Ra1 {[%emt 0:00:32]} Rc6 {[%emt 0:00:39]} 84. Ra7+ {[%emt 0:00:05]} Kg8 {[%emt 0:00:14]} 85. e6 {[%emt 0:00:14]} Rc8 {[%emt 0:01:10]} 86. Kf6 {[%emt 0:00:21]} Re8 {[%emt 0:01:31]} 87. g7 {[%emt 0:00:22]} Rb8 {[%emt 0:00:49]} 88. Ra1 {[%emt 0:00:14]} 1-0

[Event "Czech Youth U16 Girls 2024"]
[Site "Kouty nad Desnou"]
[Date "2024.03.11"]
[Round "4.7"]
[White "Kavanova, Anezka"]
[Black "Janouskova, Adela"]
[Result "1-0"]
[ECO "B33"]
[WhiteElo "1661"]
[BlackElo "1684"]
[Annotator "NA RC"]
[PlyCount "49"]
[EventDate "2024.03.10"]
[EventType "swiss"]
[EventCountry "CZE"]
[SourceTitle "playchess.com"]
[Source "ChessBase"]
[SourceQuality "1"]
[TimeControl "40/5400+30:1800+30"]

1. e4 {[%emt 0:00:03]} c5 {[%emt 0:00:18]} 2. Nf3 {[%emt 0:00:06]} Nc6 {[%emt 0:00:01]} 3. d4 {[%emt 0:00:07]} cxd4 {[%emt 0:00:02]} 4. Nxd4 {[%emt 0:00:07]} Nf6 {[%emt 0:00:09]} 5. Nc3 {[%emt 0:00:19]} g6 {[%emt 0:01:22]} 6. Nxc6 {[%emt 0:00:07]} dxc6 {[%emt 0:00:26]} 7. Qxd8+ {[%emt 0:01:45]} Kxd8 {[%emt 0:00:02]} 8. e5 {[%emt 0:00:16]} Nd5 {[%emt 0:02:26]} 9. Nxd5 {[%emt 0:00:55]} cxd5 {[%emt 0:00:11]} 10. Be3 {[%emt 0:00:12]} Bf5 {[%emt 0:07:27]} 11. O-O-O {[%emt 0:00:40]} e6 {[%emt 0:09:30]} 12. Bd3 {[%emt 0:03:39]} Bxd3 {[%emt 0:04:00]} 13. Rxd3 {[%emt 0:00:08]} Be7 {[%emt 0:06:43]} 14. Kb1 {[%emt 0:00:27]} Ke8 {[%emt 0:03:16]} 15. Rc1 {[%emt 0:11:12]} b6 16. c4 {[%emt 0:00:18]} dxc4 {[%emt 0:21:14]} 17. Rxc4 {[%emt 0:00:12]} f6 {[%emt 0:06:32]} 18. exf6 {[%emt 0:00:20]} Bxf6 {[%emt 0:00:15]} 19. Rc7 {[%emt 0:09:10]} Be5 {[%emt 0:12:54]} 20. Rb7 {[%emt 0:00:08]} Bxh2 {[%emt 0:02:08]} 21. g3 {[%emt 0:04:28]} h5 {[%emt 0:00:22]} 22. Bg5 {[%emt 0:01:12]} Bg1 {[%emt 0:01:18]} 23. Re7+ {[%emt 0:00:26]} Kf8 {[%emt 0:00:10]} 24. Rdd7 {[%emt 0:00:11]} a6 {[%emt 0:01:58]} 25. Bf6 {[%emt 0:01:29]} 1-0

[Event "Czech Youth U16 Girls 2024"]
[Site "Kouty nad Desnou"]
[Date "2024.03.11"]
[Round "4.8"]
[White "Dudkova, Josefina"]
[Black "Stavova, Marketa"]
[Result "1-0"]
[ECO "D02"]
[WhiteElo "1796"]
[BlackElo "1641"]
[Annotator "NA RC"]
[PlyCount "99"]
[EventDate "2024.03.10"]
[EventType "swiss"]
[EventCountry "CZE"]
[SourceTitle "playchess.com"]
[Source "ChessBase"]
[SourceQuality "1"]
[TimeControl "40/5400+30:1800+30"]

1. d4 {[%emt 0:00:09]} d5 {[%emt 0:00:20]} 2. Bf4 {[%emt 0:00:08]} Nf6 {[%emt 0:01:17]} 3. Nf3 {[%emt 0:00:07]} e6 {[%emt 0:00:46]} 4. e3 {[%emt 0:00:22]} c5 {[%emt 0:01:19]} 5. c3 {[%emt 0:01:30]} Nc6 {[%emt 0:01:00]} 6. Nbd2 {[%emt 0:00:36]} cxd4 {[%emt 0:03:05]} 7. exd4 {[%emt 0:00:45]} h6 {[%emt 0:01:22]} 8. Bd3 {[%emt 0:00:49]} Bd6 {[%emt 0:00:49]} 9. Ne5 {[%emt 0:02:02]} O-O {[%emt 0:01:40]} 10. O-O {[%emt 0:02:14]} Qc7 {[%emt 0:01:57]} 11. Re1 {[%emt 0:06:55]} Bd7 {[%emt 0:08:16]} 12. Re3 {[%emt 0:02:51]} Kh8 {[%emt 0:02:24]} 13. Qf3 {[%emt 0:07:24]} Bxe5 {[%emt 0:05:29]} 14. dxe5 {[%emt 0:01:47]} Ng8 {[%emt 0:01:20]} 15. g4 {[%emt 0:04:09]} Qd8 {[%emt 0:04:49]} 16. Qh3 {[%emt 0:04:36]} g5 {[%emt 0:02:49]} 17. Bg3 {[%emt 0:01:44]} Kg7 {[%emt 0:05:18]} 18. Qf1 {[%emt 0:10:49]} Nge7 {[%emt 0:07:57]} 19. f4 {[%emt 0:04:24]} f6 {[%emt 0:06:20]} 20. f5 {[%emt 0:03:46]} fxe5 {[%emt 0:01:56]} 21. Bxe5+ {[%emt 0:01:25]} Nxe5 {[%emt 0:01:06]} 22. Rxe5 {[%emt 0:00:03]} Qb6+ {[%emt 0:02:26]} 23. Kg2 {[%emt 0:13:20]} Qxb2 {[%emt 0:05:13]} 24. Qe1 {[%emt 0:03:46]} Qxc3 {[%emt 0:07:00]} 25. fxe6 {[%emt 0:02:20]} Bc6 {[%emt 0:00:39]} 26. Bf5 {[%emt 0:02:52]} Rad8 {[%emt 0:04:53]} 27. Rc1 {[%emt 0:02:57]} Qb2 {[%emt 0:01:26]} 28. Rc2 {[%emt 0:01:16]} Qb6 {[%emt 0:03:49]} 29. Nf3 {[%emt 0:02:58]} Rc8 {[%emt 0:04:03]} 30. Qd2 {[%emt 0:05:59]} Rg8 {[%emt 0:02:51]} 31. Rc1 {[%emt 0:07:57]} Qd8 {[%emt 0:03:14]} 32. Nxg5 {[%emt 0:02:42]} Be8 {[%emt 0:04:48]} 33. Rf1 {[%emt 0:00:53]} Ng6 {[%emt 0:02:38]} 34. Nf7 {[%emt 0:01:14]} Qh4 {[%emt 0:00:30]} 35. Rxd5 {[%emt 0:00:31]} Ne7 {[%emt 0:00:37]} 36. Qb2+ {[%emt 0:00:27]} Kf8 {[%emt 0:00:19]} 37. Rd4 {[%emt 0:00:24]} Nxf5 {[%emt 0:02:05]} 38. e7+ {[%emt 0:00:43]} Qxe7 {[%emt 0:00:36]} 39. Rxf5 {[%emt 0:00:31]} Bxf7 {[%emt 0:00:20]} 40. Rdf4 {[%emt 0:00:25]} Ke8 {[%emt 0:00:00]} 41. Rxf7 {[%emt 0:02:53]} Rxg4+ {[%emt 0:02:25]} 42. Rxg4 {[%emt 0:00:30]} Qxf7 {[%emt 0:00:36]} 43. Qe5+ {[%emt 0:03:26]} Kf8 {[%emt 0:05:49]} 44. Qh8+ {[%emt 0:00:54]} Ke7 {[%emt 0:00:13]} 45. Qxc8 {[%emt 0:00:18]} Qd5+ {[%emt 0:00:58]} 46. Kg3 {[%emt 0:03:02]} Qe5+ {[%emt 0:01:46]} 47. Kf3 {[%emt 0:04:07]} Qf6+ {[%emt 0:01:28]} 48. Ke3 {[%emt 0:01:28]} Qb6+ {[%emt 0:00:25]} 49. Kf3 {[%emt 0:00:45]} Qf6+ {[%emt 0:00:42]} 50. Rf4 {[%emt 0:00:22]} 1-0

[Event "Czech Youth U16 Girls 2024"]
[Site "Kouty nad Desnou"]
[Date "2024.03.11"]
[Round "4.10"]
[White "Dlaskova, Eliska"]
[Black "Souralova, Jana"]
[Result "1-0"]
[ECO "C44"]
[WhiteElo "1526"]
[BlackElo "1597"]
[Annotator "NA RC"]
[PlyCount "76"]
[EventDate "2024.03.10"]
[EventType "swiss"]
[EventCountry "CZE"]
[SourceTitle "playchess.com"]
[Source "ChessBase"]
[SourceQuality "1"]
[TimeControl "40/5400+30:1800+30"]

1. e4 {[%emt 0:00:03]} e5 {[%emt 0:00:07]} 2. Nf3 {[%emt 0:00:08]} Nc6 {[%emt 0:00:18]} 3. d4 {[%emt 0:00:12]} exd4 {[%emt 0:00:38]} 4. Nxd4 {[%emt 0:00:08]} Nf6 {[%emt 0:00:11]} 5. Nxc6 {[%emt 0:00:29]} bxc6 {[%emt 0:00:53]} 6. Bd3 {[%emt 0:00:57]} d5 {[%emt 0:10:42]} 7. e5 {[%emt 0:06:53]} Nd7 {[%emt 0:04:00]} 8. O-O {[%emt 0:02:13]} Bc5 {[%emt 0:02:15]} 9. Re1 {[%emt 0:04:41]} Nb6 10. c3 {[%emt 0:02:40]} Qh4 {[%emt 0:08:37]} 11. Be3 {[%emt 0:03:23]} Be7 {[%emt 0:09:44]} 12. g3 {[%emt 0:03:43]} Qh3 {[%emt 0:06:03]} 13. Bf1 {[%emt 0:09:17]} Qg4 {[%emt 0:01:01]} 14. f3 {[%emt 0:13:06]} Qe6 {[%emt 0:06:06]} 15. b4 {[%emt 0:05:07]} Bb7 {[%emt 0:02:12]} 16. Nd2 {[%emt 0:05:15]} O-O-O {[%emt 0:03:42]} 17. Qb3 {[%emt 0:06:59]} Qxe5 {[%emt 0:05:11]} 18. Bxb6 {[%emt 0:01:25]} Qg5 {[%emt 0:03:32]} 19. Bxa7 {[%emt 0:01:30]} Bd6 {[%emt 0:02:17]} 20. Bh3+ {[%emt 0:02:31]} f5 {[%emt 0:00:43]} 21. Be3 {[%emt 0:02:02]} Qh5 {[%emt 0:01:13]} 22. Kg2 {[%emt 0:01:59]} g6 {[%emt 0:02:04]} 23. b5 {[%emt 0:04:19]} c5 {[%emt 0:01:41]} 24. a4 {[%emt 0:03:41]} d4 {[%emt 0:01:23]} 25. cxd4 {[%emt 0:01:56]} cxd4 {[%emt 0:00:22]} 26. Bf2 {[%emt 0:08:45]} d3 {[%emt 0:06:05]} 27. Rac1 {[%emt 0:01:05]} Kb8 {[%emt 0:02:41]} 28. b6 {[%emt 0:01:01]} Rhe8 {[%emt 0:03:20]} 29. Qc4 {[%emt 0:00:47]} c5 {[%emt 0:01:31]} 30. Bxc5 {[%emt 0:00:51]} Be5 {[%emt 0:11:13]} 31. Be3 {[%emt 0:05:53]} g5 {[%emt 0:02:38]} 32. a5 {[%emt 0:00:59]} g4 {[%emt 0:00:16]} 33. Kg1 {[%emt 0:02:03]} Qxh3 {[%emt 0:00:27]} 34. Bf4 {[%emt 0:00:20]} gxf3 {[%emt 0:00:56]} 35. Nxf3 {[%emt 0:00:26]} Ka8 {[%emt 0:01:05]} 36. Bxe5 {[%emt 0:00:28]} d2 {[%emt 0:02:39]} 37. a6 {[%emt 0:01:03]} dxe1=Q+ {[%emt 0:00:40]} 38. Nxe1 {[%emt 0:00:24]} Rc8 1-0

[Event "Czech Youth U16 Girls 2024"]
[Site "Kouty nad Desnou"]
[Date "2024.03.11"]
[Round "4.11"]
[White "Holatova, Irena"]
[Black "Urvalkova, Ema"]
[Result "1-0"]
[ECO "B22"]
[WhiteElo "1608"]
[BlackElo "1496"]
[Annotator "NA RC"]
[PlyCount "57"]
[EventDate "2024.03.10"]
[EventType "swiss"]
[EventCountry "CZE"]
[SourceTitle "playchess.com"]
[Source "ChessBase"]
[SourceQuality "1"]
[TimeControl "40/5400+30:1800+30"]

1. e4 {[%emt 0:00:02]} c5 {[%emt 0:00:07]} 2. c3 {[%emt 0:00:05]} Nf6 {[%emt 0:00:04]} 3. e5 {[%emt 0:00:10]} Nd5 {[%emt 0:00:07]} 4. d4 {[%emt 0:00:06]} cxd4 {[%emt 0:00:06]} 5. Nf3 {[%emt 0:00:07]} Nc6 {[%emt 0:00:12]} 6. Bc4 {[%emt 0:01:12]} Nb6 {[%emt 0:04:02]} 7. Bb3 {[%emt 0:01:10]} dxc3 {[%emt 0:01:28]} 8. Nxc3 {[%emt 0:00:17]} g6 {[%emt 0:02:50]} 9. O-O {[%emt 0:03:13]} Bg7 {[%emt 0:00:44]} 10. Bf4 {[%emt 0:01:13]} O-O {[%emt 0:06:37]} 11. Qd2 {[%emt 0:01:33]} Na5 {[%emt 0:05:38]} 12. Bc2 {[%emt 0:01:46]} Nac4 {[%emt 0:03:01]} 13. Qe2 {[%emt 0:02:25]} Na5 {[%emt 0:15:04]} 14. Rad1 {[%emt 0:06:38]} f6 {[%emt 0:03:29]} 15. Rfe1 {[%emt 0:07:49]} Nc6 {[%emt 0:05:57]} 16. exf6 {[%emt 0:03:55]} Bxf6 {[%emt 0:01:54]} 17. Bb3+ {[%emt 0:03:36]} Kh8 {[%emt 0:00:59]} 18. Ne5 {[%emt 0:02:35]} Kg7 {[%emt 0:03:50]} 19. Ng4 {[%emt 0:07:18]} g5 {[%emt 0:02:01]} 20. Nxf6 {[%emt 0:02:45]} exf6 {[%emt 0:01:21]} 21. Bd6 {[%emt 0:00:31]} Rh8 {[%emt 0:01:43]} 22. Nb5 {[%emt 0:02:43]} a6 {[%emt 0:04:49]} 23. Nd4 {[%emt 0:02:36]} Na5 {[%emt 0:07:22]} 24. Nf5+ {[%emt 0:02:17]} Kg6 {[%emt 0:00:12]} 25. Bc2 {[%emt 0:00:24]} Nc6 {[%emt 0:04:30]} 26. Ng3+ {[%emt 0:01:25]} Kg7 {[%emt 0:00:42]} 27. Qh5 {[%emt 0:02:06]} Nc4 {[%emt 0:02:28]} 28. Nf5+ {[%emt 0:00:26]} Kg8 {[%emt 0:00:11]} 29. Re8+ {[%emt 0:01:16]} 1-0

[Event "Czech Youth U16 Girls 2024"]
[Site "Kouty nad Desnou"]
[Date "2024.03.12"]
[Round "5.1"]
[White "Dominikova, Denisa"]
[Black "Dobsa, Emma"]
[Result "1/2-1/2"]
[ECO "C67"]
[WhiteElo "1716"]
[BlackElo "1750"]
[Annotator "NA RC"]
[PlyCount "60"]
[EventDate "2024.03.10"]
[EventType "swiss"]
[EventCountry "CZE"]
[SourceTitle "playchess.com"]
[Source "ChessBase"]
[SourceQuality "1"]
[TimeControl "40/5400+30:1800+30"]

1. e4 {[%emt 0:00:05]} e5 {[%emt 0:00:02]} 2. Nf3 {[%emt 0:00:09]} Nc6 {[%emt 0:00:01]} 3. Bb5 {[%emt 0:00:13]} Nf6 {[%emt 0:00:03]} 4. O-O {[%emt 0:00:13]} Nxe4 {[%emt 0:00:02]} 5. Re1 {[%emt 0:00:20]} Nd6 {[%emt 0:00:03]} 6. Nxe5 {[%emt 0:00:40]} Nxe5 {[%emt 0:00:03]} 7. Rxe5+ {[%emt 0:00:17]} Be7 {[%emt 0:00:04]} 8. Bf1 {[%emt 0:00:36]} O-O {[%emt 0:00:06]} 9. d4 {[%emt 0:00:37]} Bf6 {[%emt 0:00:15]} 10. Re1 {[%emt 0:00:24]} Re8 {[%emt 0:00:06]} 11. c3 {[%emt 0:00:29]} Rxe1 {[%emt 0:00:06]} 12. Qxe1 {[%emt 0:00:08]} Ne8 {[%emt 0:00:03]} 13. Bf4 {[%emt 0:00:44]} d5 {[%emt 0:00:11]} 14. Nd2 {[%emt 0:00:21]} Bf5 {[%emt 0:00:16]} 15. Qe2 {[%emt 0:00:45]} Nd6 {[%emt 0:02:18]} 16. Re1 {[%emt 0:04:36]} Qd7 {[%emt 0:01:44]} 17. Qf3 {[%emt 0:05:47]} Ne4 {[%emt 0:08:23]} 18. Nxe4 {[%emt 0:09:56]} Bxe4 {[%emt 0:00:21]} 19. Qe3 {[%emt 0:02:14]} Kf8 {[%emt 0:08:17]} 20. Qg3 {[%emt 0:11:45]} c6 {[%emt 0:03:12]} 21. Bg5 {[%emt 0:13:22]} Bxg5 {[%emt 0:05:42]} 22. Qxg5 {[%emt 0:00:13]} Re8 {[%emt 0:06:26]} 23. f3 {[%emt 0:11:27]} Bg6 {[%emt 0:02:14]} 24. Rxe8+ {[%emt 0:00:43]} Qxe8 {[%emt 0:00:32]} 25. Kf2 {[%emt 0:03:26]} h6 {[%emt 0:05:34]} 26. Qf4 {[%emt 0:05:37]} Qd8 {[%emt 0:01:52]} 27. g3 {[%emt 0:01:47]} Kg8 {[%emt 0:01:57]} 28. Bh3 {[%emt 0:01:34]} Qb6 {[%emt 0:02:34]} 29. Qd2 {[%emt 0:01:38]} Qc7 {[%emt 0:00:36]} 30. Qe2 {[%emt 0:01:48]} Kh7 {[%emt 0:01:55]} 1/2-1/2

[Event "Czech Youth U16 Girls 2024"]
[Site "Kouty nad Desnou"]
[Date "2024.03.12"]
[Round "5.2"]
[White "Zadrapova, Amalie"]
[Black "Mikesova, Lenka"]
[Result "1-0"]
[ECO "D91"]
[WhiteElo "1857"]
[BlackElo "1665"]
[Annotator "NA RC"]
[PlyCount "37"]
[EventDate "2024.03.10"]
[EventType "swiss"]
[EventCountry "CZE"]
[SourceTitle "playchess.com"]
[Source "ChessBase"]
[SourceQuality "1"]
[TimeControl "40/5400+30:1800+30"]

{[%evp 18,29,55,39,61,37,67,42,32767,37,84,57,62,66]} 1. d4 {[%emt 0:00:02]} Nf6 {[%emt 0:00:25]} 2. Nf3 {[%emt 0:00:16]} g6 {[%emt 0:00:58]} 3. c4 {[%emt 0:00:19]} Bg7 {[%emt 0:02:06]} 4. Nc3 {[%emt 0:00:11]} d5 {[%emt 0:00:25]} 5. Bg5 {[%emt 0:01:55]} Ne4 {[%emt 0:05:26]} 6. cxd5 {[%emt 0:02:51]} Nxc3 {[%emt 0:01:28]} 7. bxc3 {[%emt 0:00:06]} Qxd5 {[%emt 0:01:23]} 8. e3 {[%emt 0:05:19]} Bg4 {[%emt 0:05:11]} 9. Bf4 {[%emt 0:02:30]} O-O {[%emt 0:06:45]} (9... e5 $11 {is more appropriate.} 10. Bxe5 Bxe5 11. dxe5 Qa5) 10. Be2 {[%emt 0:01:31]} (10. Bxc7 $2 {perishes.} Qc6 11. Bg3 (11. Ba5 $2 b6 $19) 11... Qxc3+ 12. Ke2 Bf5 $19) 10... Qa5 {[%emt 0:02:36]} 11. Qc2 {[%emt 0:05:52]} Bf5 {[%emt 0:06:11]} 12. Qb2 {[%emt 0:03:21]} c5 {[%emt 0:02:23]} 13. O-O {[%emt 0:01:06]} (13. Qxb7 $2 {verliert.} Qxc3+ 14. Nd2 Qxa1+ $19) 13... b6 {[%emt 0:04:08]} (13... Qb6 $11 {remains equal.} 14. Qa3 Nd7) 14. Ne5 {[%emt 0:06:50]} cxd4 {[%emt 0:10:47]} 15. cxd4 $14 {[%emt 0:01:56]} Nd7 {[%emt 0:03:46]} 16. Nc6 {[%emt 0:02:29]} Qa4 {[%emt 0:04:41]} 17. Nxe7+ {[%emt 0:03:31]} Kh8 {[%emt 0:00:09]} 18. Nxf5 {[%emt 0:00:10]} gxf5 {[%emt 0:00:10]} 19. Bb5 {[%emt 0:00:33]} 1-0

[Event "Czech Youth U16 Girls 2024"]
[Site "Kouty nad Desnou"]
[Date "2024.03.12"]
[Round "5.3"]
[White "Brezikova, Beata"]
[Black "Cinkova, Vicky"]
[Result "0-1"]
[ECO "C58"]
[WhiteElo "1804"]
[BlackElo "1682"]
[Annotator "NA RC"]
[PlyCount "78"]
[EventDate "2024.03.10"]
[EventType "swiss"]
[EventCountry "CZE"]
[SourceTitle "playchess.com"]
[Source "ChessBase"]
[SourceQuality "1"]
[TimeControl "40/5400+30:1800+30"]

1. e4 {[%emt 0:00:02]} e5 {[%emt 0:04:00]} 2. Nf3 {[%emt 0:00:05]} Nc6 {[%emt 0:00:20]} 3. Bc4 {[%emt 0:00:07]} Nf6 {[%emt 0:00:11]} 4. Ng5 {[%emt 0:00:12]} d5 {[%emt 0:00:13]} 5. exd5 {[%emt 0:00:05]} Na5 {[%emt 0:00:10]} 6. Bb5+ {[%emt 0:00:11]} c6 {[%emt 0:00:16]} 7. dxc6 {[%emt 0:00:06]} bxc6 {[%emt 0:00:09]} 8. Qf3 {[%emt 0:00:18]} cxb5 {[%emt 0:00:55] C58: Two Knights: 4 Ng5 d5 5 exd5 Na5 sidelines.} 9. Qxa8 {[%emt 0:00:25]} Qc7 {[%emt 0:00:38]} 10. Qf3 {[%emt 0:00:38]} Nc6 {[%emt 0:00:27]} 11. c3 {[%emt 0:00:42]} Bg4 {[%emt 0:01:00]} 12. Qg3 {[%emt 0:00:49]} Nd4 {[%emt 0:00:45]} 13. Na3 {[%emt 0:01:46]} Ne2 {[%emt 0:00:45]} 14. Qd3 {[%emt 0:04:04]} Nf4 {[%emt 0:01:22]} 15. Qxb5+ {[%emt 0:03:47]} Bd7 {[%emt 0:03:14]} 16. Qf1 {[%emt 0:05:32]} Qb7 {[%emt 0:13:42]} (16... Bxa3 $19 {has better winning chances.} 17. g3 Ng6 18. bxa3 h6 19. Nxf7 Kxf7) 17. Rg1 {[%emt 0:09:31]} Bxa3 {[%emt 0:03:15]} 18. bxa3 $2 {[%emt 0:01:13]} (18. g3 Ng6 (18... Bxb2 19. Rb1 $11) (18... Bb5 19. c4 $16) 19. bxa3) 18... h6 {[%emt 0:01:23]} (18... Qd5 $142 19. Rb1 Nd3+ (19... Qxa2 $2 20. Rb4 $19) 20. Ke2 O-O (20... Qxa2 $2 21. Rb8+ Ke7 22. Rb7 $19)) 19. g3 {[%emt 0:08:38]} Ng6 {[%emt 0:06:33]} 20. Nxf7 {[%emt 0:10:06]} Kxf7 {[%emt 0:04:33]} 21. Qc4+ {[%emt 0:01:36]} Be6 {[%emt 0:05:45]} 22. Qd3 {[%emt 0:02:16]} Rb8 {[%emt 0:01:15]} 23. h4 {[%emt 0:09:19]} Qc6 {[%emt 0:05:27]} 24. Qe2 {[%emt 0:07:00]} Bg4 {[%emt 0:03:34]} 25. Qe3 {[%emt 0:02:57]} Qa4 {[%emt 0:03:35]} 26. f3 {[%emt 0:02:13]} Be6 {[%emt 0:04:53]} 27. Qe2 {[%emt 0:06:25]} Qa5 {[%emt 0:09:10]} 28. Kf2 {[%emt 0:04:27]} Qc5+ $19 {[%emt 0:02:45]} (28... e4 29. fxe4 Ne5) 29. Qe3 {[%emt 0:01:27]} Qc7 {[%emt 0:01:11]} 30. Kg2 {[%emt 0:01:21]} Bd5 {[%emt 0:02:21]} 31. Rf1 {[%emt 0:05:26]} Ne7 {[%emt 0:03:35]} 32. d3 {[%emt 0:04:16]} Qxc3 {[%emt 0:04:47]} 33. Bd2 {[%emt 0:00:48]} Rb2 {[%emt 0:01:45]} 34. Rfd1 {[%emt 0:01:29]} Ng4 {[%emt 0:01:29]} 35. Qe2 {[%emt 0:01:07]} Qc6 {[%emt 0:01:09]} 36. Rf1 {[%emt 0:00:58]} Nf5 {[%emt 0:01:36]} 37. Kh3 {[%emt 0:03:21]} Nf6 {[%emt 0:07:45]} 38. Qxe5 {[%emt 0:01:31]} Rxd2 {[%emt 0:00:25]} 39. Qxf5 {[%emt 0:00:23]} Be6 {[%emt 0:00:04]} 0-1